bitfinex/quotes_BTCUSD_20250129
["timestamp","ask_amount","ask_price","bid_price","bid_amount"]
[1738173066685,0.26673999,102600.0,102590.0,0.49922]
[1738173067021,0.37624525,102600.0,102590.0,0.49038]
[1738173067226,0.44790103,102600.0,102590.0,0.49038]
[1738173067439,0.37624525,102600.0,102590.0,0.49038]
[1738173067895,0.37624525,102600.0,102590.0,0.48738]
[1738173068878,0.26673999,102600.0,102590.0,0.48738]
[1738173069090,0.30574099,102600.0,102590.0,0.48738]
[1738173069614,0.41524625,102600.0,102590.0,0.48738]
[1738173070415,0.30574099,102600.0,102590.0,0.48738]
[1738173072248,0.41524625,102600.0,102590.0,0.48738]
[1738173072831,0.30574099,102600.0,102590.0,0.48738]
[1738173073394,0.30574099,102600.0,102590.0,0.633593]
[1738173073600,0.26673999,102600.0,102590.0,0.633593]
[1738173074052,0.09754199,102600.0,102590.0,0.633593]
[1738173074282,0.00029883,102600.0,102590.0,0.633593]
[1738173074496,0.00029883,102600.0,102590.0,0.762193]
[1738173075783,0.00029883,102600.0,102590.0,0.763193]
[1738173076147,0.00029883,102600.0,102590.0,0.762193]
[1738173076593,0.00029883,102600.0,102590.0,0.763193]
[1738173076995,0.00029883,102600.0,102590.0,0.766193]
[1738173083088,0.00029883,102600.0,102590.0,0.77611122]
[1738173083851,0.12176034,102600.0,102590.0,0.49138]
[1738173084057,0.5054636,102600.0,102590.0,0.49138]
[1738173084283,0.50424525,102600.0,102590.0,0.49138]
[1738173085160,0.31453999,102600.0,102590.0,0.636593]
[1738173085296,0.31453999,102600.0,102590.0,0.49038]
[1738173085857,0.29153999,102600.0,102590.0,0.49038]
[1738173086051,0.09754199,102600.0,102590.0,0.636593]
[1738173086460,0.26673999,102600.0,102590.0,0.636593]
[1738173086919,0.26673999,102600.0,102590.0,0.633593]
[1738173087478,0.26673999,102600.0,102590.0,0.48738]
[1738173088299,0.12054199,102600.0,102590.0,0.633593]
[1738173088478,0.26673999,102600.0,102590.0,0.633593]
[1738173091316,0.26673999,102600.0,102590.0,0.48738]
[1738173093060,0.26673999,102600.0,102590.0,0.633593]
[1738173093438,0.12054199,102600.0,102590.0,0.633593]
[1738173093845,0.26673999,102600.0,102590.0,0.633593]
[1738173094461,0.12054199,102600.0,102590.0,0.633593]
[1738173095075,0.09754199,102600.0,102590.0,0.633593]
[1738173095653,0.24373999,102600.0,102590.0,0.633593]
[1738173096657,0.09754199,102600.0,102590.0,0.633593]
[1738173097245,0.26795835,102600.0,102590.0,0.633593]
[1738173097446,0.26673999,102600.0,102590.0,0.48738]
[1738173097648,0.31653999,102600.0,102590.0,0.48738]
[1738173098573,0.31653999,102600.0,102590.0,0.46544556]
[1738173098785,0.42604525,102600.0,102590.0,0.46544556]
[1738173099002,0.50574525,102600.0,102590.0,0.46544556]
[1738173099214,0.61525051,102600.0,102590.0,0.46544556]
[1738173099638,0.50574525,102600.0,102590.0,0.46544556]
[1738173104702,0.27642946,102600.0,102590.0,0.46544556]
[1738173105306,0.26673999,102600.0,102590.0,0.61165856]
[1738173105507,0.09754199,102600.0,102590.0,0.61165856]
[1738173105943,0.26673999,102600.0,102590.0,0.61165856]
[1738173107898,0.26673999,102600.0,102590.0,0.46544556]
[1738173108347,0.37624525,102600.0,102590.0,0.46544556]
[1738173110335,0.26673999,102600.0,102590.0,0.45244716]
[1738173110535,0.26673999,102600.0,102590.0,0.45212531]
[1738173111004,0.12054199,102600.0,102590.0,0.68013831]
[1738173111150,0.09754199,102600.0,102590.0,0.72663831]
[1738173119565,0.09754199,102600.0,102590.0,0.72678061]
[1738173120761,0.09754199,102600.0,102590.0,0.59848061]
[1738173122306,0.24373999,102600.0,102590.0,0.45226761]
[1738173122512,0.09754199,102600.0,102590.0,0.59848061]
[1738173123972,0.12671314,102600.0,102590.0,0.59848061]
[1738173124174,0.27291114,102600.0,102590.0,0.59848061]
[1738173124417,0.12671314,102600.0,102590.0,0.59848061]
[1738173127030,0.27291114,102600.0,102590.0,0.59848061]
[1738173127229,0.12671314,102600.0,102590.0,0.59965734]
[1738173129196,0.02946998,102600.0,102590.0,0.59965734]
[1738173129406,0.02946998,102600.0,102590.0,0.72285734]
[1738173130334,0.02946998,102600.0,102590.0,0.82285734]
[1738173130570,0.02946998,102600.0,102590.0,0.82385734]
[1738173130862,0.00029883,102600.0,102590.0,0.82685734]
[1738173131814,0.00029883,102600.0,102590.0,0.85695584]
[1738173133729,0.00029883,102600.0,102590.0,0.86650443]
[1738173138174,0.00029883,102600.0,102590.0,0.72685734]
[1738173138382,0.00029883,102600.0,102590.0,0.68749734]
[1738173139243,0.00029883,102600.0,102590.0,0.61249734]
[1738173141672,0.00029883,102600.0,102590.0,0.60365734]
[1738173142097,0.14649683,102600.0,102590.0,0.60365734]
[1738173142333,0.37746359,102600.0,102590.0,0.45744434]
[1738173142545,0.26673999,102600.0,102590.0,0.45744434]
[1738173143614,0.29591114,102600.0,102590.0,0.45744434]
[1738173143830,0.29591114,102600.0,102590.0,0.45644434]
[1738173144015,0.29591114,102600.0,102590.0,0.45344434]
[1738173146703,0.29591114,102600.0,102590.0,0.59965734]
[1738173149236,0.14971314,102600.0,102590.0,0.59965734]
[1738173149646,0.29591114,102600.0,102590.0,0.59965734]
[1738173150068,0.29591114,102600.0,102590.0,0.45344434]
[1738173151327,0.29591114,102600.0,102590.0,0.45159193]
[1738173151742,0.29591114,102600.0,102590.0,0.59780493]
[1738173153038,0.29591114,102600.0,102590.0,0.59756301]
[1738173153248,0.29591114,102600.0,102590.0,0.45135001]
[1738173153735,0.74051751,102600.0,102590.0,0.45135001]
[1738173153951,0.83292666,102600.0,102590.0,0.45135001]
[1738173154384,0.84292666,102600.0,102590.0,0.45135001]
[1738173154614,0.81375551,102600.0,102590.0,0.45135001]
[1738173156600,0.278927,102580.0,102570.0,0.0001423]
[1738173156822,0.50867542,102580.0,102570.0,0.0001423]
[1738173159248,0.65867542,102580.0,102570.0,0.0001423]
[1738173159772,0.54917016,102580.0,102570.0,0.0001423]
[1738173159988,0.46627016,102580.0,102570.0,0.0001423]
[1738173160437,0.57577542,102580.0,102570.0,0.0001423]
[1738173161483,0.6048656,102580.0,102570.0,0.0001423]
[1738173162141,0.62410932,102580.0,102570.0,0.0001423]
[1738173162326,0.63403111,102580.0,102570.0,0.0001423]
[1738173162544,0.169241,102570.0,102560.0,0.00016425]
[1738173162782,0.26770299,102570.0,102560.0,0.00016425]
[1738173162992,0.26648416,102570.0,102560.0,0.00016425]
[1738173163195,0.65647416,102570.0,102550.0,0.46672559]
[1738173163399,0.26771699,102560.0,102550.0,4.159e-05]
[1738173163605,0.26649816,102560.0,102550.0,4.159e-05]
[1738173164377,0.26649816,102560.0,102550.0,0.00204159]
[1738173164593,0.26649816,102560.0,102550.0,0.00504159]
[1738173164984,0.26649816,102560.0,102550.0,0.00204159]
[1738173165376,0.37600342,102560.0,102550.0,0.00053718]
[1738173166023,0.16927,102550.0,102540.0,0.2225264]
[1738173166230,0.26651316,102550.0,102540.0,0.0762424]
[1738173166432,0.26651316,102550.0,102540.0,0.2225264]
[1738173166934,0.26651316,102550.0,102540.0,0.0762424]
[1738173167575,0.26651316,102550.0,102540.0,0.2225264]
[1738173168089,0.12024316,102550.0,102540.0,0.2225264]
[1738173169140,0.02909018,102560.0,102550.0,0.26847]
[1738173169332,0.27380721,102560.0,102540.0,0.4243604]
[1738173169554,0.09724316,102550.0,102540.0,0.4243604]
[1738173170538,0.09724316,102550.0,102540.0,0.4273604]
[1738173170900,0.09724316,102550.0,102540.0,0.4243604]
[1738173171083,0.01219018,102560.0,102550.0,0.14627]
[1738173171425,0.13243334,102560.0,102550.0,0.14627]
[1738173171645,0.26649816,102560.0,102550.0,0.14627]
[1738173172625,0.26649816,102560.0,102550.0,0.14597432]
[1738173172855,0.09724316,102560.0,102550.0,0.14597432]
[1738173173061,0.09724316,102560.0,102550.0,0.26817432]
[1738173174601,0.12634755,102560.0,102550.0,0.26817432]
[1738173175640,0.12634755,102560.0,102550.0,0.22207432]
[1738173175846,0.12634755,102560.0,102550.0,0.14597432]
[1738173176700,0.09724316,102560.0,102550.0,0.14597432]
[1738173176890,0.09724316,102560.0,102550.0,0.14611662]
[1738173177408,0.09754199,102560.0,102550.0,0.14611662]
[1738173178875,0.12054199,102560.0,102550.0,0.14611662]
[1738173181100,0.09754199,102560.0,102550.0,0.22321662]
[1738173183034,0.09754199,102560.0,102550.0,0.0001423]
[1738173183035,0.26801582,102560.0,102550.0,0.0001423]
[1738173183240,0.37630225,102560.0,102550.0,0.0001423]
[1738173183449,0.26679699,102560.0,102550.0,0.0001423]
[1738173183860,0.37630225,102560.0,102550.0,0.0001423]
[1738173184098,0.42360225,102560.0,102550.0,0.0001423]
[1738173184485,0.31409699,102560.0,102550.0,0.0001423]
[1738173185081,0.42360225,102560.0,102550.0,0.0001423]
[1738173185892,0.49860225,102560.0,102550.0,0.0001423]
[1738173186299,0.50060225,102560.0,102550.0,0.0001423]
[1738173186743,0.50360225,102560.0,102550.0,0.0001423]
[1738173187311,0.50060225,102560.0,102550.0,0.0001423]
[1738173187737,0.50660225,102560.0,102550.0,0.0011423]
[1738173187996,0.50460225,102560.0,102550.0,0.0011423]
[1738173188215,0.60195901,102560.0,102550.0,0.0011423]
[1738173188423,0.60495901,102560.0,102550.0,0.0011423]
[1738173190027,0.341333,102540.0,102520.0,0.68531198]
[1738173190239,0.43857616,102540.0,102520.0,0.88038498]
[1738173191210,0.43857616,102540.0,102520.0,0.68531198]
[1738173191423,0.43857616,102540.0,102520.0,0.88138498]
[1738173191643,0.04743313,102530.0,102520.0,0.68120998]
[1738173191861,0.04743313,102530.0,102520.0,0.69000998]
[1738173192441,0.04743313,102530.0,102520.0,0.69200998]
[1738173192641,0.04743313,102530.0,102520.0,0.68900998]
[1738173192847,0.04743313,102530.0,102520.0,0.68949032]
[1738173193045,0.12643278,102540.0,102520.0,0.69249032]
[1738173193256,0.12643278,102540.0,102530.0,0.222398]
[1738173193460,0.14943278,102540.0,102530.0,0.222398]
[1738173195605,0.09724316,102540.0,102530.0,0.222398]
[1738173196019,0.02918962,102550.0,102540.0,0.146284]
[1738173196244,0.02918962,102550.0,102540.0,0.281084]
[1738173196898,0.02918962,102550.0,102540.0,0.381084]
[1738173197131,0.02948845,102560.0,102550.0,0.14627]
[1738173197342,0.12673161,102560.0,102550.0,0.22517]
[1738173197966,0.02948845,102560.0,102550.0,0.27227]
[1738173198375,0.02948845,102560.0,102550.0,0.30240994]
[1738173198791,0.00029883,102560.0,102550.0,0.30240994]
[1738173199237,0.00029883,102560.0,102550.0,0.45240994]
[1738173200061,0.00329883,102560.0,102550.0,0.45240994]
[1738173200476,0.00029883,102560.0,102550.0,0.93994994]
[1738173201402,0.00029883,102560.0,102550.0,0.90981]
[1738173203225,0.00029883,102560.0,102550.0,0.94951481]
[1738173203430,0.00029883,102560.0,102550.0,1.04951481]
[1738173209846,0.00029883,102560.0,102550.0,1.01939803]
[1738173210702,0.00029883,102560.0,102550.0,1.05826237]
[1738173211676,0.00029883,102560.0,102550.0,1.02819803]
[1738173212936,0.00029883,102560.0,102550.0,1.15549713]
[1738173214522,0.00129883,102560.0,102550.0,1.16749713]
[1738173216113,0.00129883,102560.0,102550.0,1.15869713]
[1738173216350,0.00129883,102560.0,102550.0,1.04019803]
[1738173216970,0.00129883,102560.0,102550.0,1.03139803]
[1738173217183,0.00129883,102560.0,102550.0,1.04019803]
[1738173217392,0.00129883,102560.0,102550.0,1.04028021]
[1738173222033,0.00129883,102560.0,102550.0,1.03148021]
[1738173222251,0.00129883,102560.0,102550.0,0.89318021]
[1738173222709,0.00129883,102560.0,102550.0,0.99318021]
[1738173223159,0.00129883,102560.0,102550.0,0.81428021]
[1738173223817,0.00129883,102560.0,102550.0,0.81442251]
[1738173224211,0.00129883,102560.0,102550.0,0.80562251]
[1738173224542,0.00129883,102560.0,102550.0,0.81442251]
[1738173224748,0.00129883,102560.0,102550.0,0.80562251]
[1738173224958,0.12154199,102560.0,102550.0,0.65483448]
[1738173225595,0.26779699,102560.0,102550.0,0.49976448]
[1738173225798,0.12154199,102560.0,102550.0,0.65483448]
[1738173226841,0.12054199,102560.0,102550.0,0.64283448]
[1738173227051,0.15073161,102560.0,102550.0,0.65083448]
[1738173228817,0.12154199,102560.0,102550.0,0.64203448]
[1738173229340,0.26779699,102560.0,102550.0,0.49576448]
[1738173229535,0.12154199,102560.0,102550.0,0.49576448]
[1738173229752,0.12276087,102560.0,102550.0,0.64203448]
[1738173229955,0.12276087,102560.0,102550.0,0.49576448]
[1738173229956,0.26779699,102560.0,102550.0,0.49576448]
[1738173230203,0.12154199,102560.0,102550.0,0.64203448]
[1738173230351,0.26779699,102560.0,102550.0,0.49576448]
[1738173230977,0.34279699,102560.0,102550.0,0.49576448]
[1738173231185,0.19654199,102560.0,102550.0,0.49576448]
[1738173231392,0.49950225,102560.0,102550.0,0.49576448]
[1738173232826,0.49850225,102560.0,102550.0,0.48776448]
[1738173233392,0.38899699,102560.0,102550.0,0.48776448]
[1738173234765,0.49850225,102560.0,102550.0,0.48776448]
[1738173236785,0.50814711,102560.0,102550.0,0.48776448]
[1738173238318,0.39864185,102560.0,102550.0,0.48776448]
[1738173238533,0.38899699,102560.0,102550.0,0.48776448]
[1738173238758,0.16774199,102560.0,102550.0,0.48776448]
[1738173238969,0.16774199,102560.0,102550.0,0.63403448]
[1738173239217,0.31399699,102560.0,102550.0,0.48776448]
[1738173240143,0.31699699,102560.0,102550.0,0.48776448]
[1738173240363,0.15266379,102560.0,102550.0,0.63403448]
[1738173240779,0.15466379,102560.0,102550.0,0.63403448]
[1738173241831,0.03442063,102560.0,102550.0,0.63403448]
[1738173242026,0.03442063,102560.0,102550.0,0.91113448]
[1738173242405,0.00529883,102560.0,102550.0,0.91113448]
[1738173242836,0.00229883,102560.0,102550.0,0.91113448]
[1738173243225,0.00029883,102560.0,102550.0,0.91413448]
[1738173243606,0.00029883,102560.0,102550.0,0.78703448]
[1738173244144,0.26679699,102560.0,102550.0,0.49952448]
[1738173244359,0.31379699,102560.0,102550.0,0.50052448]
[1738173245399,0.31379699,102560.0,102550.0,0.49752448]
[1738173245630,0.31379699,102560.0,102550.0,0.64379448]
[1738173245631,0.12054199,102560.0,102550.0,0.64379448]
[1738173245844,0.12054199,102560.0,102550.0,0.72369448]
[1738173246266,0.26679699,102560.0,102550.0,0.64379448]
[1738173246496,0.12054199,102560.0,102550.0,0.64279448]
[1738173248331,0.00029883,102560.0,102550.0,0.64279448]
[1738173249305,0.02945059,102560.0,102550.0,0.64279448]
[1738173249509,0.02945059,102560.0,102550.0,0.63403448]
[1738173249711,0.02945059,102560.0,102550.0,0.64279448]
[1738173251456,0.02945059,102560.0,102550.0,0.72259448]
[1738173252756,0.02945059,102560.0,102550.0,0.72559448]
[1738173252967,0.02945059,102560.0,102550.0,0.72659448]
[1738173255874,0.00029883,102560.0,102550.0,0.72659448]
[1738173256426,0.00029883,102560.0,102550.0,0.91624687]
[1738173260385,0.00029883,102560.0,102550.0,1.01624687]
[1738173266246,0.00029883,102560.0,102550.0,1.06524687]
[1738173266605,0.00029883,102560.0,102550.0,1.16249003]
[1738173274568,0.00177883,102560.0,102550.0,1.16249003]
[1738173276418,0.00177883,102560.0,102550.0,1.16149003]
[1738173276673,0.02915176,102580.0,102570.0,0.1]
[1738173276905,0.0458,102590.0,102580.0,0.146227]
[1738173277126,0.0458,102590.0,102580.0,0.633647]
[1738173277581,0.15099883,102600.0,102590.0,0.146213]
[1738173277812,0.24824199,102600.0,102590.0,0.633593]
[1738173278071,0.24824199,102600.0,102590.0,0.63373773]
[1738173279226,0.17107023,102600.0,102590.0,0.63373773]
[1738173279433,0.05082707,102600.0,102590.0,0.63373773]
[1738173280053,0.05469883,102600.0,102590.0,0.63360949]
[1738173281135,0.00629883,102600.0,102590.0,0.63360949]
[1738173281346,0.0354765,102600.0,102590.0,0.73360949]
[1738173282592,0.00629883,102600.0,102590.0,0.73360949]
[1738173283528,0.00629883,102600.0,102590.0,0.63360949]
[1738173283762,0.15249683,102600.0,102590.0,0.63373773]
[1738173283960,0.25404199,102600.0,102590.0,0.64249773]
[1738173284173,0.40023999,102600.0,102590.0,0.64249773]
[1738173284392,0.40023999,102600.0,102590.0,0.48752473]
[1738173284596,0.50974525,102600.0,102590.0,0.48752473]
[1738173285009,0.40023999,102600.0,102590.0,0.48752473]
[1738173289806,0.40987679,102600.0,102590.0,0.48752473]
[1738173290658,0.42926309,102600.0,102590.0,0.48752473]
[1738173293387,0.41962629,102600.0,102590.0,0.48752473]
[1738173293840,0.40023999,102600.0,102590.0,0.48752473]
[1738173294040,0.12654199,102600.0,102590.0,0.63373773]
[1738173294611,0.27273999,102600.0,102590.0,0.63373773]
[1738173294819,0.12654199,102600.0,102590.0,0.63373773]
[1738173295223,0.12654199,102600.0,102590.0,0.48752473]
[1738173295430,0.27273999,102600.0,102590.0,0.63373773]
[1738173295624,0.12654199,102600.0,102590.0,0.63373773]
[1738173295802,0.27273999,102600.0,102590.0,0.48752473]
[1738173296004,0.12654199,102600.0,102590.0,0.63373773]
[1738173297159,0.15570251,102600.0,102590.0,0.63373773]
[1738173298725,0.12654199,102600.0,102590.0,0.63373773]
[1738173302050,0.15570607,102600.0,102590.0,0.63373773]
[1738173303601,0.03546291,102600.0,102590.0,0.63373773]
[1738173303818,0.03546291,102600.0,102590.0,0.71433773]
[1738173304466,0.00629883,102600.0,102590.0,0.71433773]
[1738173305289,0.00629883,102600.0,102590.0,0.74459926]
[1738173305468,0.00629883,102600.0,102590.0,0.84459926]
[1738173305841,0.00629883,102600.0,102590.0,0.81448003]
[1738173306056,0.00629883,102600.0,102590.0,0.84459358]
[1738173307976,0.00629883,102600.0,102590.0,0.84504826]
[1738173308600,0.00629883,102600.0,102590.0,0.81493471]
[1738173309034,0.00629883,102600.0,102590.0,0.8450384]
[1738173310859,0.00629883,102600.0,102590.0,0.8439884]
[1738173311053,0.00629883,102600.0,102590.0,0.8527084]
[1738173315278,0.00629883,102600.0,102590.0,0.82260471]
[1738173317851,0.00629883,102600.0,102590.0,0.72260471]
[1738173318056,0.00629883,102600.0,102590.0,0.64200471]
[1738173319601,0.00629883,102600.0,102590.0,0.72000471]
[1738173321078,0.00629883,102600.0,102590.0,0.64200471]
[1738173321276,0.00629883,102600.0,102590.0,0.63328471]
[1738173321455,0.00629883,102600.0,102590.0,0.64200471]
[1738173325581,0.03546291,102600.0,102590.0,0.64200471]
[1738173327931,0.15570607,102600.0,102590.0,0.64200471]
[1738173328130,0.15570607,102600.0,102590.0,0.67212782]
[1738173328770,0.15570607,102600.0,102590.0,0.64200471]
[1738173329222,0.15570607,102600.0,102590.0,0.67213399]
[1738173329431,0.15570607,102600.0,102590.0,0.64200471]
[1738173330341,0.15570607,102600.0,102590.0,0.67213965]
[1738173338958,0.30190407,102600.0,102590.0,0.51720665]
[1738173339160,0.15570607,102600.0,102590.0,0.64200471]
[1738173340104,0.27273999,102600.0,102590.0,0.64200471]
[1738173340824,0.12654199,102600.0,102590.0,0.64200471]
[1738173342568,0.27273999,102600.0,102590.0,0.49579171]
[1738173342808,0.12654199,102600.0,102590.0,0.64200471]
[1738173343057,0.12654199,102600.0,102590.0,0.49579171]
[1738173343285,0.27273999,102600.0,102590.0,0.64200471]
[1738173343426,0.27273999,102600.0,102590.0,0.49579171]
[1738173343639,0.12654199,102600.0,102590.0,0.64200471]
[1738173344703,0.27273999,102600.0,102590.0,0.49579171]
[1738173345294,0.42136797,102600.0,102590.0,0.48707171]
[1738173345504,0.54069595,102600.0,102590.0,0.48687659]
[1738173345707,0.70069595,102600.0,102590.0,0.48687659]
[1738173346473,0.76252393,102600.0,102590.0,0.48687659]
[1738173346678,0.75852393,102600.0,102590.0,0.48687659]
[1738173346907,0.87588069,102600.0,102590.0,0.34552344]
[1738173347104,0.88488069,102600.0,102590.0,0.32702844]
[1738173347303,0.88488069,102600.0,102590.0,0.24755886]
[1738173347506,0.88288069,102600.0,102590.0,0.24755886]
[1738173347951,0.88888069,102600.0,102590.0,0.24855886]
[1738173348610,0.89252789,102600.0,102590.0,0.24855886]
[1738173349023,0.89252789,102600.0,102590.0,0.00274171]
[1738173350016,0.146255,102560.0,102550.0,0.18997254]
[1738173350230,0.37728266,102560.0,102550.0,0.19011732]
[1738173350437,0.42376373,102560.0,102550.0,0.19011732]
[1738173350643,0.42376373,102560.0,102550.0,0.10328926]
[1738173351339,0.42376373,102560.0,102550.0,0.10728926]
[1738173351563,0.42376373,102560.0,102550.0,0.10328926]
[1738173351744,0.43595491,102560.0,102550.0,0.10428926]
[1738173351921,0.43595491,102560.0,102550.0,0.10528926]
[1738173352118,0.43595491,102560.0,102550.0,0.10428926]
[1738173353728,0.76871167,102560.0,102550.0,0.00136926]
[1738173354156,0.67135491,102560.0,102550.0,0.00136926]
[1738173354568,0.68825587,102560.0,102550.0,0.00136926]
[1738173355869,0.69819683,102560.0,102550.0,0.00136926]
[1738173356074,0.68819683,102560.0,102550.0,0.00136926]
[1738173356532,0.69819683,102560.0,102550.0,0.00136926]
[1738173356793,0.71792983,102560.0,102550.0,0.00136926]
[1738173357346,0.70792983,102560.0,102550.0,0.00136926]
[1738173358691,0.63252983,102560.0,102550.0,0.00136926]
[1738173358902,0.60343769,102560.0,102550.0,0.00136926]
[1738173359341,0.49387212,102560.0,102550.0,0.00136926]
[1738173359894,0.61562965,102560.0,102550.0,0.00136926]
[1738173362000,0.59692277,102560.0,102550.0,0.00136926]
[1738173362205,0.30768324,102560.0,102550.0,0.00136926]
[1738173362405,0.13842824,102560.0,102550.0,0.14763926]
[1738173362620,0.13842824,102560.0,102550.0,0.22523926]
[1738173362970,0.16142824,102560.0,102550.0,0.22523926]
[1738173363169,0.14923636,102560.0,102550.0,0.22523926]
[1738173363393,0.12623636,102560.0,102550.0,0.22523926]
[1738173363593,0.0289932,102560.0,102550.0,0.22523926]
[1738173363758,0.0289932,102560.0,102550.0,0.71277926]
[1738173364824,0.37020212,102580.0,102560.0,0.536245]
[1738173365143,0.37020212,102580.0,102560.0,0.828759]
[1738173365144,0.12024316,102570.0,102560.0,0.828759]
[1738173365383,0.12024316,102570.0,102560.0,0.682514]
[1738173366970,0.12224316,102570.0,102560.0,0.682514]
[1738173367179,0.002,102570.0,102560.0,0.806214]
[1738173367381,0.02999312,102580.0,102570.0,0.146241]
[1738173367578,0.12623628,102580.0,102570.0,0.642391]
[1738173367885,0.14923628,102580.0,102570.0,0.642391]
[1738173368618,0.15023628,102580.0,102570.0,0.642391]
[1738173369285,0.15223628,102580.0,102570.0,0.642391]
[1738173371698,0.29846328,102580.0,102570.0,0.633711]
[1738173371901,0.40802885,102580.0,102570.0,0.48747]
[1738173372891,0.26947016,102580.0,102570.0,0.633711]
[1738173373090,0.12324316,102580.0,102570.0,0.633711]
[1738173373316,0.27068885,102580.0,102570.0,0.633711]
[1738173373487,0.26947016,102580.0,102570.0,0.633711]
[1738173374563,0.26947016,102580.0,102570.0,0.48747]
[1738173376448,0.37903573,102580.0,102570.0,0.48747]
[1738173376785,0.76769249,102580.0,102570.0,0.48747]
[1738173377598,0.67033573,102580.0,102570.0,0.48747]
[1738173377825,0.70935173,102580.0,102570.0,0.48747]
[1738173379811,0.8289173,102580.0,102570.0,0.4190509]
[1738173380217,0.70935173,102580.0,102570.0,0.4190509]
[1738173380429,0.72935173,102580.0,102570.0,0.4190509]
[1738173381277,0.72835173,102580.0,102570.0,0.4190509]
[1738173381480,0.72810173,102580.0,102570.0,0.4190509]
[1738173381682,0.72610173,102580.0,102570.0,0.4190509]
[1738173382094,0.91642123,102580.0,102570.0,0.4190509]
[1738173382615,0.80785566,102580.0,102570.0,0.4190509]
[1738173382750,0.72210173,102580.0,102570.0,0.4190509]
[1738173382947,0.71210173,102580.0,102570.0,0.4190509]
[1738173383164,0.71210173,102580.0,102570.0,0.37515982]
[1738173383165,0.70210173,102580.0,102570.0,0.37515982]
[1738173383370,0.71210173,102580.0,102570.0,0.37515982]
[1738173383579,0.70110173,102580.0,102570.0,0.37515982]
[1738173384028,0.71310173,102580.0,102570.0,0.37515982]
[1738173384251,0.73310173,102580.0,102570.0,0.37515982]
[1738173384839,0.71310173,102580.0,102570.0,0.37515982]
[1738173385579,0.71310173,102580.0,102570.0,0.37530212]
[1738173386140,0.73310173,102580.0,102570.0,0.37530212]
[1738173386337,0.71310173,102580.0,102570.0,0.37530212]
[1738173386954,0.73310173,102580.0,102570.0,0.37530212]
[1738173387155,0.71310173,102580.0,102570.0,0.37530212]
[1738173389094,0.73310173,102580.0,102570.0,0.37530212]
[1738173389333,0.71310173,102580.0,102570.0,0.37530212]
[1738173389983,0.73310173,102580.0,102570.0,0.37530212]
[1738173390190,0.70310173,102580.0,102570.0,0.37530212]
[1738173390394,0.47040173,102580.0,102570.0,0.37530212]
[1738173391811,0.62040173,102580.0,102570.0,0.37530212]
[1738173393897,0.68834139,102580.0,102570.0,0.37530212]
[1738173395141,0.77424139,102580.0,102570.0,0.37530212]
[1738173396883,0.76424139,102580.0,102570.0,0.37530212]
[1738173397325,0.76454022,102580.0,102570.0,0.37530212]
[1738173397503,0.76454022,102580.0,102570.0,0.37678212]
[1738173398073,0.76454022,102580.0,102570.0,0.37799013]
[1738173398441,0.76454022,102580.0,102570.0,0.33410226]
[1738173399128,0.69660056,102580.0,102570.0,0.33410226]
[1738173403038,0.71660056,102580.0,102570.0,0.33410226]
[1738173411419,0.64070056,102580.0,102570.0,0.33410226]
[1738173411656,0.65070056,102580.0,102570.0,0.33410226]
[1738173412220,0.68970167,102580.0,102570.0,0.33410226]
[1738173412449,0.78705843,102580.0,102570.0,0.33410226]
[1738173414109,0.83465843,102580.0,102570.0,0.33410226]
[1738173414317,0.91555843,102580.0,102570.0,0.29021517]
[1738173419047,0.89555843,102580.0,102570.0,0.29021517]
[1738173419226,0.91555843,102580.0,102570.0,0.29021517]
[1738173420881,1.015124,102580.0,102570.0,0.23171817]
[1738173421120,1.015124,102580.0,102530.0,0.1231423]
[1738173421121,0.023,102540.0,102530.0,0.1231423]
[1738173421329,0.37609273,102540.0,102530.0,0.1231423]
[1738173422495,0.37609273,102540.0,102530.0,0.12362264]
[1738173425614,0.62344949,102540.0,102530.0,0.07862264]
[1738173425958,0.62344949,102540.0,102530.0,0.00062264]
[1738173426162,0.55526183,102540.0,102530.0,0.00062264]
[1738173427510,0.52909273,102540.0,102530.0,0.00062264]
[1738173428684,0.54889544,102540.0,102530.0,0.00062264]
[1738173429858,0.65846101,102540.0,102530.0,0.00062264]
[1738173430057,0.66846101,102540.0,102530.0,0.00062264]
[1738173431297,0.67806473,102540.0,102530.0,0.00062264]
[1738173432756,0.173,102530.0,102520.0,0.00018995]
[1738173432959,0.52732615,102530.0,102520.0,0.00018995]
[1738173433164,0.52610673,102530.0,102520.0,0.00018995]
[1738173433380,0.41654116,102530.0,102520.0,0.12268995]
[1738173433806,0.52610673,102530.0,102520.0,0.12268995]
[1738173434287,0.52610673,102530.0,102520.0,0.07668995]
[1738173434527,0.52610673,102530.0,102520.0,0.00118995]
[1738173434835,0.53610673,102530.0,102520.0,0.00118995]
[1738173435029,0.53610673,102530.0,102520.0,0.00018995]
[1738173435760,0.53810673,102530.0,102520.0,0.00018995]
[1738173436011,0.58460673,102530.0,102520.0,0.00118995]
[1738173436526,0.57460673,102530.0,102520.0,0.00118995]
[1738173436769,0.67510673,102530.0,102520.0,9.5e-07]
[1738173437234,0.7846723,102530.0,102520.0,9.5e-07]
[1738173437472,0.043,102520.0,102510.0,5.7e-07]
[1738173437734,0.169341,102500.0,102490.0,0.00029841]
[1738173437974,0.40736957,102500.0,102490.0,0.00029841]
[1738173438197,0.39614973,102500.0,102490.0,0.00029841]
[1738173438851,0.57788627,102500.0,102490.0,0.00029841]
[1738173439057,0.67537341,102500.0,102490.0,0.00029841]
[1738173439203,0.68037341,102500.0,102490.0,0.00029841]
[1738173439607,0.65063687,102500.0,102490.0,0.00029841]
[1738173439846,0.69493467,102500.0,102490.0,0.00029841]
[1738173440049,0.7271533,102500.0,102490.0,4.1e-07]
[1738173440204,0.46431017,102490.0,102480.0,3e-08]
[1738173440408,0.68810027,102490.0,102480.0,3e-08]
[1738173440606,0.80384584,102490.0,102480.0,3e-08]
[1738173440807,0.86946606,102490.0,102480.0,3e-08]
[1738173441119,0.9012026,102490.0,102480.0,3e-08]
[1738173441336,0.87646606,102490.0,102480.0,3e-08]
[1738173441553,0.54850114,102480.0,102470.0,3.3e-07]
[1738173441770,0.6457443,102480.0,102470.0,3.3e-07]
[1738173442205,0.319384,102470.0,102460.0,0.0001422]
[1738173442509,0.6357583,102470.0,102460.0,2e-07]
[1738173443235,0.52619273,102470.0,102460.0,2e-07]
[1738173443493,0.6357583,102470.0,102460.0,2e-07]
[1738173443789,0.7110583,102470.0,102460.0,2e-07]
[1738173443940,0.80841506,102470.0,102460.0,2e-07]
[1738173444346,0.349398,102460.0,102450.0,0.0001423]
[1738173444725,0.6657723,102460.0,102450.0,0.0001423]
[1738173444929,0.55620673,102460.0,102450.0,0.0001423]
[1738173445549,0.55620673,102460.0,102450.0,0.00028717]
[1738173445752,0.72123788,102460.0,102450.0,0.00028717]
[1738173446087,0.72623788,102460.0,102450.0,0.00028717]
[1738173446492,0.179412,102450.0,102440.0,0.0154172]
[1738173446692,0.65700675,102450.0,102440.0,0.0154172]
[1738173446916,0.6557863,102450.0,102440.0,0.0154172]
[1738173447116,0.75314306,102450.0,102440.0,0.0154172]
[1738173447362,0.349427,102440.0,102430.0,3e-07]